Cogmind - Beta 16 --- EXPLORER MODE // 2025.12.08 @ 09:32:14 Player: K.K.Y. Result: Destroyed by as-29488 with Assembled Heavy Rifle Performance ------------- Evolutions (0) 0 Regions Visited (2) 400 Robots Destroyed (22) 110 Value Destroyed (362) 362 Prototype IDs (0) 0 Alien Tech Used (0) 0 Bonus (0) 0 TOTAL SCORE: 872 Bonus ------- None Cogmind --------- Core Integrity 0/250 Matter 300/300 Energy 9/100 System Corruption 9% Temperature Cool (0) Movement Core (50) Location -10/Mines Parts ------- > --- POWER (1) -------- (None) > --- PROPULSION (2) --- (None) > --- UTILITY (3) ------ (None) > --- WEAPON (2) ------- (None) > --- INVENTORY (5) ---- Ion Engine High-capacity Storage Unit EM Pulse Gun Minigun Mining Laser Peak State ------------ > --- POWER ------------ Deuterium Engine > --- PROPULSION ------- Titanium Leg > --- UTILITY ---------- Structural Scanner Sensor Array Improved Terrain Scanner > --- WEAPON ----------- EM Pulse Cannon Hammer > --- INVENTORY -------- Ion Engine High-capacity Storage Unit EM Pulse Gun Medium Laser Mining Laser [Rating: 15] Favorites ----------- Power Light Ion Engine Engine Light Ion Engine Propulsion Flight Unit Leg Titanium Leg Wheel Wheel Flight Unit Flight Unit Utility Structural Scanner Device Structural Scanner Weapon Medium Laser Energy Gun Medium Laser Energy Cannon EM Pulse Cannon Impact Weapon Hammer Special Melee Weapon Datajack Build | -11 -10 -10 ------- Run | Yrd Mat Min Slots Evolved 1 | . 1 . Power . | . . . Propulsion . | . . . Utility 1 | . 1 . Weapon . | . . . Parts Attached 18 | 3 12 3 Power 4 | . 3 1 Engine 4 | . 3 1 Core . | . . . Reactor . | . . . Propulsion 5 | 2 2 1 Treads . | . . . Leg 1 | . . 1 Wheel 2 | 2 . . Hover . | . . . Flight 2 | . 2 . Utility 4 | . 4 . Device 4 | . 4 . Storage . | . . . Processor . | . . . Hackware . | . . . Protection . | . . . Artifact . | . . . Weapon 5 | 1 3 1 Energy Gun 2 | 1 1 . Energy Cannon 1 | . . 1 Ballistic Gun . | . . . Ballistic Cannon . | . . . Launcher . | . . . Special Weapon . | . . . Impact Weapon 1 | . 1 . Slashing Weapon . | . . . Piercing Weapon . | . . . Special Melee Weapon 1 | . 1 . Unidentified Prototypes . | . . . Parts Lost 5 | . . 5 Power 1 | . . 1 Propulsion . | . . . Utility 3 | . . 3 Weapon 1 | . . 1 Highest Loss Streak 5 | . . 5 To Critical Strikes . | . . . Average Backups 4 | 3 4 5 Power . | . 1 1 Propulsion . | . . . Utility 1 | 1 1 1 Weapon 1 | 1 1 3 Tool/Special . | . . . Unused Backups 3 | . . 3 Power 1 | . . 1 Propulsion . | . . . Utility 1 | . . 1 Weapon 1 | . . 1 Tool/Special . | . . . Average Slot Usage (%) 65 | . 64 74 Engine 7 | . 6 8 Leg 1 | . . 8 Wheel 7 | . 8 . Flight 14 | . 15 8 Device 14 | . 12 28 Energy Gun 10 | . 12 . Energy Cannon 1 | . . 8 Impact Weapon 2 | . . 12 Special Melee Weapon 5 | . 6 . Peak Build Rating 15 | 3 10 15 Average Rating 5 | 1 5 11 On Entrance 4 | . 3 9 Avg Prop Armor Cover (%) . | . . . Naked Turns 1 | . . 1 Heaviest Build 20 | 2 9 20 Greatest Support 20 | 20 20 17 Greatest Overweight (x) 2 | . 2 2 Average Overweight (x) . | . . . Largest Inventory Capacity 5 | 5 5 5 Average Capacity 5 | 5 5 5 Most Carried 5 | 5 5 5 Average Carried 4 | 3 4 5 Final Capacity 5 | 5 5 5 Final Carried 5 | 5 5 5 Class Distribution -------------------- 79% | Hacker-Mutant 13% | Scavenger-Scout 7% | Scavenger-Skirmisher Dominant Class ---------------- Hacker-Mutant | -10/Materials Hacker-Mutant | -10/Mines Resources | -11 -10 -10 ----------- Run | Yrd Mat Min Matter Collected 455 | 220 210 25 Remotely . | . . . Salvage Created 726 | 198 487 41 Parts 39 | 13 25 1 Haulers Intercepted 1 | . 1 . Recyclers Shooed 3 | . 3 . Parts Field Recycled . | . . . Retrieved Matter . | . . . Parts Self-Destructed . | . . . Prevented . | . . . Parts Restored . | . . . Kills | -11 -10 -10 ------- Run | Yrd Mat Min Combat Hostiles Destroyed 8 | . 7 1 Guns 7 | . 7 . Cannons 1 | . . 1 Classes Destroyed 9 | 3 5 1 Worker 2 | 2 . . Builder 2 | . 2 . Tunneler 5 | 5 . . Hauler 1 | . 1 . Recycler 2 | 1 1 . Watcher 2 | . 2 . Swarmer 2 | . 2 . Grunt 5 | . 5 . Demolisher 1 | . . 1 Best Kill Streak 6 | 6 6 1 Combat Bots Only 2 | . 2 1 Max Kills in Single Turn 1 | 1 1 1 Gunslinging . | . . . Exploded . | . . . Melee . | . . . Uniques/NPCs Destroyed . | . . . Combat | -11 -10 -10 -------- Run | Yrd Mat Min Hostile Shots Fired 90 | . 42 48 Missed 25 | . 13 12 Hits 65 | . 29 36 Melee 3 | . . 3 Projectile 62 | . 29 33 AOE 2 | . . 2 Damage Taken 817 | . 190 627 Core 253 | . 68 185 Absorbed by Shields . | . . . Ignored by Resistances 339 | . 125 214 Core Remaining (%) 100 | 100 . . Volleys Fired 70 | 17 48 5 Largest 2 | 1 2 1 Hottest 90 | 50 90 63 Shots Fired 76 | 17 54 5 Gun 71 | 17 54 . Cannon 5 | . . 5 Launcher . | . . . Special . | . . . Kinetic . | . . . Thermal 65 | 17 48 . Explosive . | . . . Electromagnetic 11 | . 6 5 Robot Hit Streak 26 | 10 26 16 Robot Miss Streak 1 | 1 1 1 Penetration Max . | . . . Secondary Targets . | . . . Shots Hit Robots 70 | 16 51 3 Core Hits 32 | 9 22 1 Critical Kills . | . . . Critical Parts Destroyed . | . . . Critical Strikes 4 | 3 1 . Burn 4 | 3 1 . Melee Attacks 1 | . 1 . Impact . | . . . Slashing . | . . . Piercing . | . . . Sneak Attacks 1 | . 1 . Combat Hostiles . | . . . Follow-up Attacks . | . . . Damage Inflicted 894 | 199 629 66 Guns 828 | 199 629 . Cannons 66 | . . 66 Explosions . | . . . Melee . | . . . Ramming . | . . . Kinetic . | . . . Thermal 752 | 199 553 . Explosive . | . . . Electromagnetic 142 | . 76 66 Impact . | . . . Slashing . | . . . Piercing . | . . . Highest Corruption 9 | . . 9 Average Corruption 9 | . . 9 Corruption Purged . | . . . Corruption Blocked . | . . . Effects 1 | . . 1 Data Loss (minor) 1 | . . 1 Overload Shots . | . . . Overflow Damage . | . . . Projectiles . | . . . Explosions . | . . . Melee . | . . . Knockbacks . | . . . Impact . | . . . Kinetic . | . . . Secondary . | . . . Self-Inflicted Damage . | . . . Shots . | . . . Rammed . | . . . Targets Rammed . | . . . Kicked . | . . . Crushed . | . . . Highest Temperature 198 | 25 198 84 Average Temperature 67 | 25 71 45 Received Heat Transfer 168 | . 138 30 Siege Activations . | . . . Martial Activations . | . . . Shielding Activations . | . . . Robots Disrupted . | . . . Combat Hostiles . | . . . Robots Corrupted . | . . . Combat Hostiles . | . . . Parts Fried . | . . . Impact Corruptions . | . . . Robots Melted . | . . . Combat Hostiles . | . . . Parts Melted 3 | 1 2 . Heat Transferred 2516 | 814 1702 . Parts Sabotaged . | . . . Parts Stolen . | . . . Parts Stripped . | . . . Power Chain Reactions . | . . . Alert | -11 -10 -10 ------- Run | Yrd Mat Min Maximum Alert Level . | . . . Low Security (%) 100 | 100 100 100 Level 1 . | . . . Level 2 . | . . . Level 3 . | . . . Level 4 . | . . . Level 5 . | . . . High Security . | . . . Max Security . | . . . Peak Influence 82 | 15 82 5 Initial 5 | . 4 5 Average 21 | 3 29 1 Influence Increases 291 | 40 221 30 Destroy 0b10 Robot/C 160 | . 140 20 Destroy 0b10 Robot/NC 70 | 40 30 . Destroy Leader 46 | . 36 10 Lose Combat Pursuer 15 | . 15 . Influence Decreases 291 | 30 211 50 Entered New Map 21 | . 6 15 Time Decay 240 | 30 205 5 Lost Part 30 | . . 30 Squads Dispatched 1 | . . 1 Investigation 1 | . . 1 Extermination . | . . . Reinforcement . | . . . Assault . | . . . Garrison . | . . . Intercept . | . . . Searches Triggered . | . . . Construction Impeded . | . . . Haulers Reinforced . | . . . Active Scanning Responses . | . . . Cargo Convoy Interrupts . | . . . Stealth | -11 -10 -10 --------- Run | Yrd Mat Min Distress Signals 1 | . 1 . Communications Jammed . | . . . Distress Signals . | . . . Times Spotted 26 | . 10 16 Peak Tracking Total 13 | . 3 13 Tactical Retreats 1 | . 1 . Traps | -11 -10 -10 ------- Run | Yrd Mat Min Traps Triggered 5 | . 5 . Indirectly . | . . . Trap Hack Attempts . | . . . Triggered . | . . . Disarmed . | . . . Reprogrammed . | . . . Reused . | . . . Traps Extracted . | . . . Installed . | . . . Triggered . | . . . Machines | -11 -10 -10 ---------- Run | Yrd Mat Min Machines Disabled . | . . . Max in Single Turn . | . . . Machines Repaired . | . . . Machines Dismantled . | . . . Machines Sabotaged . | . . . Overloaded Fab Kills . | . . . Hacking | -11 -10 -10 --------- Run | Yrd Mat Min Machines Accessed 2 | . 1 1 Terminals . | . . . Fabricators . | . . . Repair Stations . | . . . Recycling Units 1 | . 1 . Scanalyzers . | . . . Garrison Access . | . . . Total Hacks 3 | . 2 1 Successful 2 | . 1 1 Failed 1 | . 1 . Catastrophic . | . . . Database Lockouts . | . . . Manual . | . . . Terminals . | . . . Fabricators . | . . . Repair Stations . | . . . Recycling Units 2 | . 2 . Scanalyzers . | . . . Garrison Access . | . . . Terminal Hacks 1 | . . 1 Open Door 1 | . . 1 Fabricator Hacks . | . . . Repair Station Hacks . | . . . Recycling Unit Hacks 1 | . 1 . Retrieve Components 1 | . 1 . Scanalyzer . | . . . Garrison Access Hacks . | . . . Unauthorized Hacks . | . . . Terminals . | . . . Fabricators . | . . . Repair Stations . | . . . Recycling Units . | . . . Scanalyzers . | . . . Garrison Access . | . . . Data Cores Recovered . | . . . Used . | . . . Hacking Detections 1 | . 1 . Full Trace Events . | . . . Feedback Events . | . . . Feedback Blocked . | . . . Robot Schematics Acquired . | . . . Robots Built . | . . . Authchips . | . . . Time . | . . . Total Robot Build Rating . | . . . Part Schematics Acquired . | . . . Parts Built . | . . . Authchips . | . . . Time . | . . . Total Part Build Rating . | . . . Part Studies Acquired . | . . . Parts Repaired . | . . . Time . | . . . Parts Recycled . | . . . Recycled Matter . | . . . Retrieved Matter . | . . . Retrieved Components 3 | . 3 . Parts Scanalyzed . | . . . Part Schematics Acquired . | . . . Parts Damaged . | . . . Bothacking | -11 -10 -10 ------------ Run | Yrd Mat Min Used RIF Installer . | . . . Robots Hacked 1 | . 1 . Non-combat 1 | . 1 . Combat . | . . . Robot Hacks Applied 1 | . 1 . find_recycling 1 | . 1 . Relay Couplers Released . | . . . Fabnet Peak Effective % . | . . . Robots Rewired . | . . . Allies Hacked . | . . . Hacks Repelled . | . . . Allies | -11 -10 -10 -------- Run | Yrd Mat Min Total Allies . | . . . Largest Group . | . . . Highest-Rated Group . | . . . Highest-Rated Ally . | . . . Total Orders . | . . . Ally Attacks . | . . . Total Damage . | . . . Kills . | . . . Allies Corrupted . | . . . Allies Melted . | . . . Intel | -11 -10 -10 ------- Run | Yrd Mat Min Active Infowar (turns) 237 | . 189 48 Sensors 149 | . 120 29 Terrain 151 | . 103 48 Structural 164 | . 135 29 ECM 55 | . 55 . Robot Analysis Total . | . . . Derelict Logs Recovered . | . . . Drone Launches . | . . . Drone Recoveries . | . . . Exploration | -11 -10 -10 ------------- Run | Yrd Mat Min Turns Passed 584 | 118 415 51 Spaces Moved 516 | 99 392 25 Core 78 | 70 4 4 Treads . | . . . Legs 12 | . . 12 Wheels 143 | 29 114 . Hover . | . . . Flight 283 | . 274 9 Fastest Speed 37 | 50 37 37 Average Speed 57 | 58 54 102 Slowest Speed 200 | 80 150 200 Overloaded Moves . | . . . Propulsion Burnouts . | . . . Robots Hopped . | . . . Potential Cave-ins . | . . . Cave-ins Triggered 1 | . . 1 Exploration Rate (%) 26 | 4 64 12 Regions Visited 2 Branch Regions 1 Pre-discovered Areas . | . . . Known Exits Taken 2 | 1 1 . Unknown Exits Taken . | . . . Scrap Searched 1 | . . 1 Spaces Dug . | . . . Terrain Destroyed . | . . . Melee . | . . . Projectile . | . . . AOE . | . . . Terrain Rammed . | . . . Walls Destroyed . | . . . Machines Disabled . | . . . Actions | -11 -10 -10 --------- Run | Yrd Mat Min Total 723 | 140 536 47 Wait 85 | 16 61 8 Move 514 | 98 391 25 Hop . | . . . Pick Up 10 | 6 3 1 Fast Attach 18 | 2 15 1 Attach 6 | 1 5 . Detach 4 | . 4 . Swap 3 | . 1 2 Drop 12 | . 7 5 Fire 70 | 17 48 5 Melee 1 | . 1 . Ram . | . . . Kick . | . . . Crush . | . . . Escape Stasis . | . . . Rewire . | . . . Trap . | . . . Miscellaneous . | . . . Route ------- -11/Scrapyard -10/Materials (discovered 3 exits: *Mat / *Min x2) -10/Mines History --------- Turn | Location | Event 7 | -11/Scrapyard | Identified exit to Materials 7 | -11/Scrapyard | Discovered exit to Materials (range 15) 119 | -11/Scrapyard | Entered Materials 119 | -10/Materials | Evolved 1 slot: Utility x1 273 | -10/Materials | Identified exit to Materials 273 | -10/Materials | Discovered exit to Materials (range 16) 325 | -10/Materials | Build established: Hacker-Mutant 438 | -10/Materials | Identified exit to Mines 438 | -10/Materials | Discovered exit to Mines (range 13) 524 | -10/Materials | Discovered exit to Mines (range 7) 534 | -10/Materials | Entered Mines 535 | -10/Mines | Assembled infested the area 537 | -10/Mines | Met a Derelict shopkeep closing up shop 540 | -10/Mines | Assisted by a Guerilla fighting off Assembled 563 | -10/Mines | Crushed by falling debris 564 | -10/Mines | Core integrity fell below 50% 582 | -10/Mines | Core integrity fell below 20% 585 | -10/Mines | Destroyed by as-29488 with Assembled Heavy Rifle Last Messages --------------- 00563_ Structural Scanner destroyed. 00563_ System corrupted by crushing effect (+3). 00563_ Q3-403(g) destroyed. 00563_ Machine disabled. 00566_ D-53 Grenadier destroyed. 00571_ System corrupted: Component data lost. 00571_ U-05 Engineer lays Concrete. 00572_ Acquired 15 matter. 00572_ U-05 Engineer lays Concrete. 00575_ U-05 Engineer destroyed. 00578_ R-06 Scavenger collects Lgt. Ion Engine. 00580_ Dropped Titanium Leg. 00580_ as-47790 sneak attacks. 00580_ R-06 Scavenger knocked back. 00582_ Imp. Terrain Scanner destroyed. 00582_ Knocked back. 00583_ EM Pulse Cannon destroyed. 00584_ Dropped Hammer. 00584_ G-34 Mercenary destroyed. 00584_ R-06 Scavenger destroyed. Map ----- +----------------------------------------------------+ | | | | | ????????#?????????????????????????????????????? | | ??????????????????????#???????????????????????? | | ???????????????###????????????????????????????? | | ???????????????#####??????????????????????????? | | ??????????????? ####?????????????????????????? | | ???????????????? #####???????????????????????? | | ???????????????? ##### ???????????????????? | | ???#???????????? ### ## ??????????????????? | | ???????????????? ## ## ##???????????????? | | ??????????##### ## #???????????????? | | ?????????######## a ?????????????? | | ????#????###""## ? ! # ????????????? | | ?????????##"*! #X ##??? a% a #????????????? | | ????????###"=!% ###? % #????????????? | | ?????????##" = a#### aa##????????????? | | ?????????##"! [ #### #????????????? | | ?????????### # a #????????????? | | ???#?????#### ##????????????? | | ??????????### = ##???????????? | | ????????????# % % #???????????? | | ????????????# | %a ???????????? | | ????????????### !%a!% ## ????????????? | | ?????????????## !%aa= ###????????????????? | | ?????????????######*%[@/#####?????????????????? | | ?????????????###### ########?????????????????? | | ??????????????????# "# ????????????????????? | | ??????????????????#"%# ???????????????????????? | | ??????????????????# "# ???? ??????????????????? | | ??????????????????# # ???????????????????????? | | ??????????????????# # ?? ????????????????????? | | ??????????????????# # ???????????????????????? | | ??????????????????# ##?????? ????????????????? | | ??????????????????# ##???????????????????????? | | ??????????????????# #?#??????????????????????? | | ??????????????????# ?????????????????????????? | | ??????????????????# ?????????????????????????? | | ??????????????????? ?????????????????????????? | | ??????????????????????????????????????????????? | | ??????????????????????????????????????????????? | | ??????????????????????????????????????????????? | | ??????????????????????????????????????????????? | | ??????????????????????????????????????????????? | | ??????????????????????????????????????????????? | | ??????????????????????????????????????????????? | | ??????????????????????????????????????????????? | | ??????????????????????????????????????????????? | | ??????????????????????????????????????????????? | | ??????????????????????????????????????????????? | +----------------------------------------------------+ Best States ------------- Heat Dissipation 25 Energy Generation 14 Energy Capacity 275 Matter Stores 300 Matter Capacity 300 Sight Range 16 Robot Scan Range 14 Terrain Scan Range 16 Terrain Scan Density 10 ECM Strength 1 Resistance: KI 35 Resistance: TH 35 Resistance: EX 35 Resistance: EM 35 Resistance: I 35 Resistance: S 35 Resistance: P 35 Evasion (%) 62 Offensive Hacking 20 Item Schematics ----------------- None Robot Schematics ------------------ None Fabricated ------------ Nothing Repaired ---------- Nothing Studied --------- None Alien Tech Used ----------------- None Achievements -------------- None Challenges ------------ None Game ------ Seed FluxChargeGriptreads Manual? 0 Play Time 00:09:06 Cumulative 174.4 hours Start 2025.12.08 @ 09:24:54 End 2025.12.08 @ 09:32:14 Sessions 1 Manual Loads 0 Difficulty Explorer Special Mode None Game No. 238 Rogue 0 Adventurer 0 Explorer 238 Win Type - Total 0 Types 0/0/0/0/0/0/0/0/0/0 Lore% 70 Gallery% 67 Achievement% 53 Wizard Run 0 Options --------- Layout 1 ASCII 0 Keyboard 0 Movement Mouse Keybinds 0 Fullscreen 1 Font 24/Smallcaps Map View 50x35 Zoom Use 0% Tactical HUD 1 Map Filters NONE Filters NONE Steam 1 RUN: 11da5ce9-2d89-450a-9d2a-24d53f723a29